[Event "*** Titled Tuesday Blitz"]
[Site "Chess.com"]
[Date "2020.02.04"]
[Round "2"]
[White "hanzo_hasashi1"]
[Black "AdrianaNikolova"]
[Result "1-0"]
[WhiteElo "2903"]
[BlackElo "2392"]
[TimeControl "180+2"]
[EndTime "13:26:29 PST"]
[Termination "hanzo_hasashi1 won by resignation"]

1. Nf3 {[%clk 0:03:01.9]} 1... d5 {[%clk 0:02:58.7]} 2. c4 {[%clk 0:03:01.7]}
2... c6 {[%clk 0:02:56.9]} 3. e3 {[%clk 0:03:02.1]} 3... Nf6 {[%clk 0:02:58.3]}
4. d4 {[%clk 0:03:02.9]} 4... Bg4 {[%clk 0:02:55.9]} 5. h3 {[%clk 0:03:03.5]}
5... Bxf3 {[%clk 0:02:56.5]} 6. Qxf3 {[%clk 0:03:05.4]} 6... e6 {[%clk
0:02:58.4]} 7. Bd3 {[%clk 0:03:02.9]} 7... Nbd7 {[%clk 0:02:57.9]} 8. O-O {[%clk
0:03:03]} 8... Bb4 {[%clk 0:02:58.4]} 9. a3 {[%clk 0:03:00.9]} 9... Ba5 {[%clk
0:02:59.1]} 10. b4 {[%clk 0:03:00.8]} 10... Bc7 {[%clk 0:03:00.1]} 11. Bb2
{[%clk 0:02:59.2]} 11... O-O {[%clk 0:02:58.3]} 12. Nc3 {[%clk 0:02:54.8]} 12...
dxc4 {[%clk 0:02:55.1]} 13. Bxc4 {[%clk 0:02:54.7]} 13... e5 {[%clk 0:02:57]}
14. Rfd1 {[%clk 0:02:52.2]} 14... Qe7 {[%clk 0:02:50.5]} 15. b5 {[%clk 0:02:45]}
15... e4 {[%clk 0:02:38.8]} 16. Qe2 {[%clk 0:02:44.3]} 16... Qd6 {[%clk
0:02:36.5]} 17. g3 {[%clk 0:02:44.2]} 17... Nb6 {[%clk 0:02:26.3]} 18. Bb3
{[%clk 0:02:28.4]} 18... g6 {[%clk 0:02:16.6]} 19. a4 {[%clk 0:02:27.6]} 19...
Nbd5 {[%clk 0:02:17.1]} 20. Nxd5 {[%clk 0:02:26.1]} 20... cxd5 {[%clk
0:02:10.8]} 21. Ba3 {[%clk 0:02:23.2]} 21... Qe6 {[%clk 0:02:12.1]} 22. Bxf8
{[%clk 0:02:20.3]} 22... Rxf8 {[%clk 0:02:12.7]} 23. Kg2 {[%clk 0:02:20.2]}
23... Nh5 {[%clk 0:02:13.8]} 24. Rac1 {[%clk 0:02:17.6]} 24... Bb8 {[%clk
0:02:12.8]} 25. Rc5 {[%clk 0:02:15.9]} 25... Rd8 {[%clk 0:02:12.8]} 26. Rdc1
{[%clk 0:02:13.8]} 26... b6 {[%clk 0:01:59.7]} 27. Rxd5 {[%clk 0:02:08.8]} 27...
Rxd5 {[%clk 0:01:51.2]} 28. Bxd5 {[%clk 0:02:09.3]} 28... Qxd5 {[%clk
0:01:27.6]} 29. Rc8+ {[%clk 0:02:08.5]} 29... Kg7 {[%clk 0:01:29.5]} 30. Rxb8
{[%clk 0:02:09.2]} 30... Qb3 {[%clk 0:01:30.7]} 31. Rb7 {[%clk 0:01:59.2]} 31...
Qxa4 {[%clk 0:01:26.8]} 32. d5 {[%clk 0:02:00]} 32... Qa3 {[%clk 0:01:09.9]} 33.
Qd2 {[%clk 0:01:56.9]} 33... Qd6 {[%clk 0:01:07.7]} 34. Rxa7 {[%clk 0:01:55.1]}
34... Nf6 {[%clk 0:01:03.9]} 35. Qd4 {[%clk 0:01:55.4]} 35... Qxd5 {[%clk
0:00:49.9]} 36. Qxb6 {[%clk 0:01:34.2]} 36... Qf5 {[%clk 0:00:44.2]} 37. Qd4
{[%clk 0:01:20.8]} 37... Qxb5 {[%clk 0:00:34.3]} 38. g4 {[%clk 0:01:20.6]} 38...
h6 {[%clk 0:00:27.1]} 39. Re7 {[%clk 0:01:04.2]} 39... Qe2 {[%clk 0:00:26.2]}
40. Rxe4 {[%clk 0:01:04]} 40... Qb5 {[%clk 0:00:20.9]} 41. Rf4 {[%clk
0:01:03.7]} 41... Qc6+ {[%clk 0:00:22]} 42. Kh2 {[%clk 0:01:03.9]} 42... g5
{[%clk 0:00:23.2]} 43. Rf5 {[%clk 0:01:04.6]} 43... Qc7+ {[%clk 0:00:23.2]} 44.
Qe5 {[%clk 0:01:04.3]} 44... Qc6 {[%clk 0:00:24.3]} 45. h4 {[%clk 0:01:00.5]}
45... gxh4 {[%clk 0:00:22.8]} 46. g5 {[%clk 0:00:57.5]} 46... hxg5 {[%clk
0:00:24.5]} 47. Rxg5+ {[%clk 0:00:58.2]} 47... Kh6 {[%clk 0:00:21.5]} 48. Qf4
{[%clk 0:00:56.9]} 48... Nh5 {[%clk 0:00:10.6]} 49. Qxh4 {[%clk 0:00:47.5]}
49... Qf3 {[%clk 0:00:08.1]} 50. Rg2 {[%clk 0:00:40.8]} 50... f6 {[%clk
0:00:08.8]} 51. Qg4 {[%clk 0:00:40.4]} 51... Qxg4 {[%clk 0:00:04.2]} 52. Rxg4
{[%clk 0:00:40.8]} 52... f5 {[%clk 0:00:05.8]} 53. Rc4 {[%clk 0:00:41.2]} 53...
Nf6 {[%clk 0:00:07.3]} 54. Kg3 {[%clk 0:00:41.6]} 54... Kg5 {[%clk 0:00:07.9]}
55. Kf3 {[%clk 0:00:42.2]} 55... Nd7 {[%clk 0:00:04.6]} 56. Ke2 {[%clk
0:00:41.7]} 56... Ne5 {[%clk 0:00:05.8]} 57. f4+ {[%clk 0:00:41.9]} 57... Kf6
{[%clk 0:00:05.5]} 58. fxe5+ {[%clk 0:00:43.8]} 1-0

[Event "*** Titled Tuesday Blitz"]
[Site "Chess.com"]
[Date "2020.02.04"]
[Round "2"]
[White "CrushingKings"]
[Black "FelixJoseYnojosa"]
[Result "1/2-1/2"]
[WhiteElo "2166"]
[BlackElo "2644"]
[TimeControl "180+2"]
[EndTime "13:26:30 PST"]
[Termination "Game drawn - insufficient material"]

1. e4 {[%clk 0:03:01.9]} 1... c5 {[%clk 0:03:01.3]} 2. Nf3 {[%clk 0:03:02.5]}
2... Nc6 {[%clk 0:03:02.9]} 3. d4 {[%clk 0:03:03.1]} 3... cxd4 {[%clk
0:03:04.8]} 4. Nxd4 {[%clk 0:03:05]} 4... e5 {[%clk 0:03:06.4]} 5. Nb5 {[%clk
0:03:05.8]} 5... d6 {[%clk 0:03:07.7]} 6. N1c3 {[%clk 0:03:06.2]} 6... a6 {[%clk
0:03:08.9]} 7. Na3 {[%clk 0:03:07.8]} 7... b5 {[%clk 0:03:10.1]} 8. Nd5 {[%clk
0:03:06.9]} 8... Nf6 {[%clk 0:03:11.7]} 9. Bg5 {[%clk 0:03:07.6]} 9... Be7
{[%clk 0:03:13.1]} 10. Bxf6 {[%clk 0:03:08.7]} 10... Bxf6 {[%clk 0:03:15]} 11.
c4 {[%clk 0:03:09.7]} 11... b4 {[%clk 0:03:16.1]} 12. Nc2 {[%clk 0:03:11]} 12...
Rb8 {[%clk 0:03:16.7]} 13. b3 {[%clk 0:03:02.2]} 13... a5 {[%clk 0:03:17.2]} 14.
g3 {[%clk 0:03:02.5]} 14... Bg5 {[%clk 0:03:18.4]} 15. h4 {[%clk 0:03:03.4]}
15... Bh6 {[%clk 0:03:19.8]} 16. Bh3 {[%clk 0:03:03.6]} 16... Be6 {[%clk
0:03:21.4]} 17. Kf1 {[%clk 0:03:04.5]} 17... O-O {[%clk 0:03:22.4]} 18. Kg2
{[%clk 0:03:05]} 18... Qd7 {[%clk 0:03:22.9]} 19. Qd3 {[%clk 0:02:27.7]} 19...
Qa7 {[%clk 0:03:21.6]} 20. Bf5 {[%clk 0:02:22.4]} 20... g6 {[%clk 0:03:18.5]}
21. Nf6+ {[%clk 0:02:17.1]} 21... Kg7 {[%clk 0:03:13.2]} 22. Ng4 {[%clk
0:02:16.4]} 22... Rbd8 {[%clk 0:02:38.8]} 23. Rad1 {[%clk 0:02:01.6]} 23... Ne7
{[%clk 0:02:36.9]} 24. Nxh6 {[%clk 0:01:19.4]} 24... Kxh6 {[%clk 0:02:35.6]} 25.
Qd2+ {[%clk 0:01:20.6]} 25... Kg7 {[%clk 0:02:36.2]} 26. Bxe6 {[%clk 0:01:21.9]}
26... fxe6 {[%clk 0:02:36.7]} 27. h5 {[%clk 0:01:23.4]} 27... Rf6 {[%clk
0:02:28.2]} 28. hxg6 {[%clk 0:01:24]} 28... Rxg6 {[%clk 0:02:30.1]} 29. Rh5
{[%clk 0:01:21.2]} 29... Ng8 {[%clk 0:02:20.4]} 30. Rxe5 {[%clk 0:01:17.6]}
30... h6 {[%clk 0:02:10.6]} 31. Rb5 {[%clk 0:01:09.9]} 31... Nf6 {[%clk
0:01:46.8]} 32. Nd4 {[%clk 0:00:48.5]} 32... Nxe4 {[%clk 0:01:34.5]} 33. Nc6
{[%clk 0:00:40.9]} 33... Qa8 {[%clk 0:01:13.7]} 34. Qd4+ {[%clk 0:00:40.3]}
34... Nf6 {[%clk 0:01:15.2]} 35. Qb6 {[%clk 0:00:35.8]} 35... Rd7 {[%clk
0:01:09.1]} 36. Rxa5 {[%clk 0:00:32.1]} 36... Qf8 {[%clk 0:01:04.4]} 37. Ra7
{[%clk 0:00:31.2]} 37... Rxa7 {[%clk 0:00:10.3]} 38. Qxa7+ {[%clk 0:00:33.1]}
38... Kh8 {[%clk 0:00:11.6]} 39. Qe7 {[%clk 0:00:18.6]} 39... Qxe7 {[%clk
0:00:04.9]} 40. Nxe7 {[%clk 0:00:20]} 40... Rg7 {[%clk 0:00:06.4]} 41. Nc6
{[%clk 0:00:21.5]} 41... d5 {[%clk 0:00:07.9]} 42. Nxb4 {[%clk 0:00:21.4]} 42...
dxc4 {[%clk 0:00:09]} 43. bxc4 {[%clk 0:00:22.8]} 43... Rc7 {[%clk 0:00:10.6]}
44. Rd4 {[%clk 0:00:23.3]} 44... Kg7 {[%clk 0:00:09.9]} 45. Nd3 {[%clk
0:00:20.5]} 45... Ra7 {[%clk 0:00:10.3]} 46. Nf4 {[%clk 0:00:17.2]} 46... e5
{[%clk 0:00:07.6]} 47. Ne6+ {[%clk 0:00:17.5]} 47... Kf7 {[%clk 0:00:09.2]} 48.
Rd6 {[%clk 0:00:19.1]} 48... Ke7 {[%clk 0:00:10.3]} 49. Rb6 {[%clk 0:00:18.1]}
49... Rxa2 {[%clk 0:00:11.2]} 50. Nc5 {[%clk 0:00:17.1]} 50... Rc2 {[%clk
0:00:10.6]} 51. Re6+ {[%clk 0:00:17.7]} 51... Kf7 {[%clk 0:00:11.7]} 52. Rxe5
{[%clk 0:00:18.6]} 52... Rxf2+ {[%clk 0:00:11.8]} 53. Kxf2 {[%clk 0:00:19.4]}
53... Ng4+ {[%clk 0:00:13.3]} 54. Ke2 {[%clk 0:00:17.1]} 54... Nxe5 {[%clk
0:00:15.2]} 55. Nd3 {[%clk 0:00:16.4]} 55... Nxc4 {[%clk 0:00:15.9]} 56. Nf4
{[%clk 0:00:16.8]} 56... Kf6 {[%clk 0:00:16.9]} 57. Kf3 {[%clk 0:00:18.1]} 57...
Ne5+ {[%clk 0:00:16.4]} 58. Kg2 {[%clk 0:00:16.1]} 58... Kf5 {[%clk 0:00:17.2]}
59. Nh3 {[%clk 0:00:16.7]} 59... Ng6 {[%clk 0:00:17.4]} 60. Nf2 {[%clk
0:00:17.6]} 60... h5 {[%clk 0:00:18.3]} 61. g4+ {[%clk 0:00:18.3]} 61... hxg4
{[%clk 0:00:18.7]} 62. Nxg4 {[%clk 0:00:20.2]} 1/2-1/2

[Event "*** Titled Tuesday Blitz"]
[Site "Chess.com"]
[Date "2020.02.04"]
[Round "2"]
[White "PowerThinking2650"]
[Black "Korchmar_Vasiliy"]
[Result "0-1"]
[WhiteElo "2380"]
[BlackElo "2784"]
[TimeControl "180+2"]
[EndTime "13:26:34 PST"]
[Termination "Korchmar_Vasiliy won by checkmate"]

1. e4 {[%clk 0:03:01.9]} 1... c5 {[%clk 0:03:01.1]} 2. Nf3 {[%clk 0:03:02.5]}
2... d6 {[%clk 0:03:02.1]} 3. Nc3 {[%clk 0:03:03.2]} 3... Nc6 {[%clk 0:03:02.5]}
4. g3 {[%clk 0:03:04.3]} 4... g6 {[%clk 0:03:02.1]} 5. Bg2 {[%clk 0:03:05.3]}
5... Bg7 {[%clk 0:03:03.6]} 6. O-O {[%clk 0:03:06.2]} 6... Nf6 {[%clk
0:03:05.2]} 7. d3 {[%clk 0:03:07.6]} 7... O-O {[%clk 0:03:05.6]} 8. h3 {[%clk
0:03:08.8]} 8... Rb8 {[%clk 0:03:06.5]} 9. Be3 {[%clk 0:03:09.8]} 9... b5 {[%clk
0:03:05.8]} 10. a3 {[%clk 0:03:10.9]} 10... a5 {[%clk 0:03:06.3]} 11. Qd2 {[%clk
0:03:11.7]} 11... b4 {[%clk 0:03:07.6]} 12. axb4 {[%clk 0:03:12.9]} 12... axb4
{[%clk 0:03:09.5]} 13. Nd1 {[%clk 0:03:14.1]} 13... Re8 {[%clk 0:03:05.8]} 14.
Bh6 {[%clk 0:03:14.9]} 14... Bh8 {[%clk 0:03:07.3]} 15. Ng5 {[%clk 0:03:11.5]}
15... Ne5 {[%clk 0:02:43.8]} 16. Ne3 {[%clk 0:03:01.7]} 16... Bb7 {[%clk
0:02:37.7]} 17. f4 {[%clk 0:02:55.7]} 17... Nc6 {[%clk 0:02:38.8]} 18. g4 {[%clk
0:02:48.8]} 18... Nd4 {[%clk 0:02:38]} 19. f5 {[%clk 0:02:39.2]} 19... Ra8
{[%clk 0:02:39.2]} 20. Rab1 {[%clk 0:02:35.2]} 20... e6 {[%clk 0:02:27]} 21.
fxe6 {[%clk 0:02:26.4]} 21... fxe6 {[%clk 0:02:21]} 22. e5 {[%clk 0:02:14.4]}
22... Bxg2 {[%clk 0:02:17.4]} 23. exf6 {[%clk 0:02:05.1]} 23... Bxf6 {[%clk
0:02:18]} 24. Nxg2 {[%clk 0:02:00.4]} 24... Qe7 {[%clk 0:01:56.4]} 25. Ne4
{[%clk 0:01:31.1]} 25... Be5 {[%clk 0:01:53.9]} 26. Bg5 {[%clk 0:00:56]} 26...
Qb7 {[%clk 0:01:54.7]} 27. Bf6 {[%clk 0:00:52.1]} 27... Rf8 {[%clk 0:01:48]} 28.
Bxe5 {[%clk 0:00:51.9]} 28... dxe5 {[%clk 0:01:49.9]} 29. Qh6 {[%clk 0:00:20.3]}
29... Qe7 {[%clk 0:01:35.4]} 30. Nh4 {[%clk 0:00:19.6]} 30... Ne2+ {[%clk
0:01:19.7]} 31. Kh1 {[%clk 0:00:17.5]} 31... Nf4 {[%clk 0:01:21.6]} 32. Kh2
{[%clk 0:00:16.2]} 32... c4 {[%clk 0:01:11.1]} 33. dxc4 {[%clk 0:00:15.5]} 33...
Qb7 {[%clk 0:01:12.6]} 34. Rbe1 {[%clk 0:00:15.8]} 34... Rad8 {[%clk 0:00:56.1]}
35. Nf3 {[%clk 0:00:12.3]} 35... b3 {[%clk 0:00:30.9]} 36. c3 {[%clk 0:00:12]}
36... Qc7 {[%clk 0:00:31.1]} 37. Nfg5 {[%clk 0:00:12.2]} 37... Rd3 {[%clk
0:00:23]} 38. Nxe6 {[%clk 0:00:08.6]} 38... Nxe6 {[%clk 0:00:10.4]} 39. Rxf8+
{[%clk 0:00:08.9]} 39... Nxf8 {[%clk 0:00:12.3]} 40. Nf6+ {[%clk 0:00:09.3]}
40... Kf7 {[%clk 0:00:13.8]} 41. Rf1 {[%clk 0:00:08.5]} 41... e4+ {[%clk
0:00:11.5]} 42. Kh1 {[%clk 0:00:09.4]} 42... Rf3 {[%clk 0:00:11.1]} 43. Rxf3
{[%clk 0:00:07.1]} 43... exf3 {[%clk 0:00:13]} 44. Nd5 {[%clk 0:00:05]} 44...
Qg3 {[%clk 0:00:12.4]} 45. Qf4+ {[%clk 0:00:04.9]} 45... Qxf4 {[%clk 0:00:13.4]}
46. Nxf4 {[%clk 0:00:06.8]} 46... Nd7 {[%clk 0:00:12.8]} 47. Nd3 {[%clk
0:00:07.3]} 47... Nb6 {[%clk 0:00:10.5]} 48. Nc5 {[%clk 0:00:04.3]} 48... Nxc4
{[%clk 0:00:07.6]} 49. Nxb3 {[%clk 0:00:05.3]} 49... Nxb2 {[%clk 0:00:08.4]} 50.
Nd4 {[%clk 0:00:05.4]} 50... f2 {[%clk 0:00:06.6]} 51. Kg2 {[%clk 0:00:06.3]}
51... Nd3 {[%clk 0:00:07.1]} 52. Kf1 {[%clk 0:00:07.1]} 52... Kf6 {[%clk
0:00:07.6]} 53. h4 {[%clk 0:00:08.1]} 53... Ke5 {[%clk 0:00:08.4]} 54. Ne2
{[%clk 0:00:09]} 54... Ke4 {[%clk 0:00:08.1]} 55. h5 {[%clk 0:00:09.9]} 55... g5
{[%clk 0:00:08.2]} 56. c4 {[%clk 0:00:08.9]} 56... Ke3 {[%clk 0:00:06.8]} 57.
Ng3 {[%clk 0:00:08]} 57... Nc5 {[%clk 0:00:05.7]} 58. Nf5+ {[%clk 0:00:08]}
58... Kf3 {[%clk 0:00:06.6]} 59. Nh6 {[%clk 0:00:08.7]} 59... Ne4 {[%clk
0:00:05.6]} 60. Nf7 {[%clk 0:00:09.4]} 60... Nd2# {[%clk 0:00:06.7]} 0-1

[Event "*** Titled Tuesday Blitz"]
[Site "Chess.com"]
[Date "2020.02.04"]
[Round "2"]
[White "FrogMist"]
[Black "FearNoEvil12"]
[Result "0-1"]
[WhiteElo "2400"]
[BlackElo "2028"]
[TimeControl "180+2"]
[EndTime "13:26:34 PST"]
[Termination "FearNoEvil12 won by resignation"]

1. e4 {[%clk 0:03:00.4]} 1... a6 {[%clk 0:02:59.3]} 2. d4 {[%clk 0:02:58.5]}
2... b5 {[%clk 0:03:00.4]} 3. a4 {[%clk 0:02:59.5]} 3... b4 {[%clk 0:03:00]} 4.
Bc4 {[%clk 0:02:58.8]} 4... e6 {[%clk 0:02:59.2]} 5. Nf3 {[%clk 0:02:59.2]} 5...
Bb7 {[%clk 0:03:00.6]} 6. Qe2 {[%clk 0:02:59.4]} 6... Nf6 {[%clk 0:02:59.2]} 7.
Nbd2 {[%clk 0:02:59]} 7... d6 {[%clk 0:02:59.4]} 8. O-O {[%clk 0:02:59.3]} 8...
Nbd7 {[%clk 0:03:00.8]} 9. a5 {[%clk 0:02:59.7]} 9... Rg8 {[%clk 0:03:01.8]} 10.
e5 {[%clk 0:02:59.9]} 10... Nd5 {[%clk 0:03:00.7]} 11. Re1 {[%clk 0:02:58.8]}
11... g5 {[%clk 0:02:58.5]} 12. Ne4 {[%clk 0:02:54.4]} 12... g4 {[%clk
0:02:58.4]} 13. Nfg5 {[%clk 0:02:53.8]} 13... Be7 {[%clk 0:02:40.9]} 14. Nxh7
{[%clk 0:02:34.3]} 14... dxe5 {[%clk 0:02:40.9]} 15. dxe5 {[%clk 0:02:28.9]}
15... Nxe5 {[%clk 0:02:41]} 16. Neg5 {[%clk 0:02:13.6]} 16... Nxc4 {[%clk
0:02:32.5]} 17. Nxf7 {[%clk 0:02:12.3]} 17... Kxf7 {[%clk 0:02:22.3]} 18. Qxe6+
{[%clk 0:02:12.6]} 18... Kg7 {[%clk 0:02:22.1]} 19. Qh6+ {[%clk 0:02:13.2]}
19... Kf7 {[%clk 0:02:20.4]} 20. b3 {[%clk 0:01:29.1]} 20... Rg6 {[%clk
0:02:15.7]} 21. Qh5 {[%clk 0:01:24.9]} 21... Nd6 {[%clk 0:02:06.6]} 22. Bb2
{[%clk 0:01:10.2]} 22... Qg8 {[%clk 0:01:39.4]} 23. Re5 {[%clk 0:00:58.3]} 23...
Nf6 {[%clk 0:00:58.8]} 24. Rxe7+ {[%clk 0:00:54.3]} 24... Kxe7 {[%clk
0:00:58.1]} 25. Nxf6 {[%clk 0:00:48.8]} 25... Rxf6 {[%clk 0:00:57.6]} 26. Bxf6+
{[%clk 0:00:31.7]} 26... Kxf6 {[%clk 0:00:58.2]} 27. Qh6+ {[%clk 0:00:22.5]}
27... Qg6 {[%clk 0:00:53.6]} 28. Qf4+ {[%clk 0:00:23.1]} 28... Qf5 {[%clk
0:00:51.4]} 29. Qxb4 {[%clk 0:00:24.3]} 29... Qe4 {[%clk 0:00:47.8]} 30. Qc3+
{[%clk 0:00:22.9]} 30... Kg6 {[%clk 0:00:44.6]} 31. f3 {[%clk 0:00:22.3]} 31...
gxf3 {[%clk 0:00:40.8]} 32. Rf1 {[%clk 0:00:21]} 32... Re8 {[%clk 0:00:33.1]}
33. Rxf3 {[%clk 0:00:09.3]} 33... Qe1+ {[%clk 0:00:33]} 34. Qxe1 {[%clk
0:00:09.8]} 34... Rxe1+ {[%clk 0:00:32.9]} 35. Kf2 {[%clk 0:00:11.7]} 35... Bxf3
{[%clk 0:00:33.5]} 36. Kxe1 {[%clk 0:00:10.5]} 36... Bxg2 {[%clk 0:00:34.3]} 37.
Kd2 {[%clk 0:00:12.4]} 37... Kf5 {[%clk 0:00:32.5]} 38. Kc3 {[%clk 0:00:13.2]}
38... Ke5 {[%clk 0:00:32.4]} 39. Kb4 {[%clk 0:00:14.6]} 39... Kd5 {[%clk
0:00:29.6]} 40. c4+ {[%clk 0:00:14.7]} 40... Kc6 {[%clk 0:00:30]} 41. Kc3 {[%clk
0:00:14.8]} 41... Bh3 {[%clk 0:00:27.3]} 42. Kd4 {[%clk 0:00:14.5]} 42... Nb7
{[%clk 0:00:25.3]} 43. b4 {[%clk 0:00:15.5]} 43... Kd6 {[%clk 0:00:19.1]} 44.
Ke4 {[%clk 0:00:12.9]} 44... Nxa5 {[%clk 0:00:16.4]} 45. c5+ {[%clk 0:00:02.6]}
45... Kc6 {[%clk 0:00:16.7]} 46. Kd4 {[%clk 0:00:03.7]} 46... Nb7 {[%clk
0:00:13.7]} 47. Kc4 {[%clk 0:00:05.6]} 47... Nxc5 {[%clk 0:00:13.9]} 48. bxc5
{[%clk 0:00:07.5]} 48... a5 {[%clk 0:00:12.9]} 49. Kd4 {[%clk 0:00:07.4]} 49...
a4 {[%clk 0:00:13.7]} 50. Kc4 {[%clk 0:00:09.3]} 50... a3 {[%clk 0:00:14.2]} 51.
Kb3 {[%clk 0:00:10.8]} 51... Kxc5 {[%clk 0:00:15.6]} 52. Kxa3 {[%clk 0:00:12.2]}
52... Kd4 {[%clk 0:00:17]} 53. Kb2 {[%clk 0:00:13.8]} 53... c5 {[%clk
0:00:18.4]} 54. Kc1 {[%clk 0:00:15.4]} 54... c4 {[%clk 0:00:19.8]} 55. Kc2
{[%clk 0:00:17]} 55... c3 {[%clk 0:00:20.7]} 56. Kc1 {[%clk 0:00:18.9]} 56...
Kd3 {[%clk 0:00:21.1]} 57. Kd1 {[%clk 0:00:19.7]} 57... Bg4+ {[%clk 0:00:18.4]}
58. Kc1 {[%clk 0:00:20.9]} 58... Bh5 {[%clk 0:00:19.8]} 59. h4 {[%clk
0:00:21.7]} 59... Kc4 {[%clk 0:00:19.6]} 60. Kc2 {[%clk 0:00:22.8]} 60... Bg4
{[%clk 0:00:18.5]} 61. Kc1 {[%clk 0:00:24.3]} 61... Kb3 {[%clk 0:00:18.8]} 62.
Kb1 {[%clk 0:00:25.3]} 62... c2+ {[%clk 0:00:17.7]} 63. Kc1 {[%clk 0:00:27.2]}
63... Bf3 {[%clk 0:00:17.1]} 64. h5 {[%clk 0:00:28.6]} 64... Bxh5 {[%clk
0:00:17.7]} 65. Kd2 {[%clk 0:00:30.5]} 65... Kb2 {[%clk 0:00:18.7]} 0-1

[Event "*** Titled Tuesday Blitz"]
[Site "Chess.com"]
[Date "2020.02.04"]
[Round "2"]
[White "renehp"]
[Black "SF-96"]
[Result "0-1"]
[WhiteElo "2363"]
[BlackElo "2617"]
[TimeControl "180+2"]
[EndTime "13:26:48 PST"]
[Termination "SF-96 won by resignation"]

1. e4 {[%clk 0:02:59.4]} 1... e5 {[%clk 0:03:00.4]} 2. Nf3 {[%clk 0:02:59]} 2...
Nc6 {[%clk 0:03:00.7]} 3. Bb5 {[%clk 0:03:00]} 3... a6 {[%clk 0:03:01.8]} 4. Ba4
{[%clk 0:03:01]} 4... Nf6 {[%clk 0:03:01.8]} 5. O-O {[%clk 0:03:01.8]} 5... b5
{[%clk 0:02:59.8]} 6. Bb3 {[%clk 0:03:01.9]} 6... Bc5 {[%clk 0:03:00]} 7. c3
{[%clk 0:03:00.2]} 7... d6 {[%clk 0:02:58.3]} 8. d4 {[%clk 0:03:01]} 8... Bb6
{[%clk 0:02:59.2]} 9. a4 {[%clk 0:03:02]} 9... Rb8 {[%clk 0:03:00]} 10. a5
{[%clk 0:02:57.5]} 10... Ba7 {[%clk 0:03:00.5]} 11. h3 {[%clk 0:02:53.2]} 11...
O-O {[%clk 0:02:55.9]} 12. Re1 {[%clk 0:02:51.1]} 12... h6 {[%clk 0:02:47.1]}
13. Be3 {[%clk 0:02:49.1]} 13... Ra8 {[%clk 0:02:44.9]} 14. Nbd2 {[%clk
0:02:47.7]} 14... Bd7 {[%clk 0:02:36.7]} 15. Bc2 {[%clk 0:02:45.3]} 15... Re8
{[%clk 0:02:22.7]} 16. d5 {[%clk 0:02:38]} 16... Ne7 {[%clk 0:02:22.2]} 17. Bxa7
{[%clk 0:02:38.9]} 17... Rxa7 {[%clk 0:02:24.1]} 18. b3 {[%clk 0:02:40.1]} 18...
Ng6 {[%clk 0:02:24]} 19. c4 {[%clk 0:02:40.4]} 19... Nf4 {[%clk 0:02:22.9]} 20.
Nf1 {[%clk 0:02:40.4]} 20... Qb8 {[%clk 0:02:04.6]} 21. Bd3 {[%clk 0:02:36.3]}
21... Nxd3 {[%clk 0:01:03.8]} 22. Qxd3 {[%clk 0:02:36.9]} 22... bxc4 {[%clk
0:01:05.1]} 23. bxc4 {[%clk 0:02:36.9]} 23... Qb4 {[%clk 0:01:05.3]} 24. Reb1
{[%clk 0:02:33.7]} 24... Qc5 {[%clk 0:01:06.5]} 25. N3d2 {[%clk 0:02:29.4]}
25... Raa8 {[%clk 0:00:53.5]} 26. Nb3 {[%clk 0:02:29.1]} 26... Qa7 {[%clk
0:00:54.2]} 27. Ne3 {[%clk 0:02:26.5]} 27... Rab8 {[%clk 0:00:47.4]} 28. Nd2
{[%clk 0:02:18.8]} 28... Qd4 {[%clk 0:00:30.9]} 29. Qc2 {[%clk 0:01:55.7]} 29...
Rec8 {[%clk 0:00:15.1]} 30. Nb3 {[%clk 0:01:55.7]} 30... Qa7 {[%clk 0:00:16.2]}
31. c5 {[%clk 0:01:56.7]} 31... Bb5 {[%clk 0:00:17.5]} 32. c6 {[%clk 0:01:57.4]}
32... g6 {[%clk 0:00:14.2]} 33. Qc1 {[%clk 0:01:53.2]} 33... Kg7 {[%clk
0:00:14.8]} 34. Nd2 {[%clk 0:01:53.5]} 34... Qd4 {[%clk 0:00:15.2]} 35. Nc2
{[%clk 0:01:35.3]} 35... Qa7 {[%clk 0:00:08.8]} 36. Ra3 {[%clk 0:01:32.6]} 36...
h5 {[%clk 0:00:10.1]} 37. Ne3 {[%clk 0:01:21.7]} 37... Qd4 {[%clk 0:00:10.8]}
38. Nc2 {[%clk 0:01:21.3]} 38... Qc5 {[%clk 0:00:11]} 39. Rbb3 {[%clk
0:01:18.5]} 39... Be2 {[%clk 0:00:06.3]} 40. Rc3 {[%clk 0:01:14.3]} 40... Qa7
{[%clk 0:00:06.6]} 41. Qe1 {[%clk 0:01:15.4]} 41... Bb5 {[%clk 0:00:05.6]} 42.
Ne3 {[%clk 0:01:16]} 42... Qd4 {[%clk 0:00:05.6]} 43. Nb3 {[%clk 0:01:13.1]}
43... Qb4 {[%clk 0:00:05.8]} 44. Nc1 {[%clk 0:01:11.5]} 44... Qxe4 {[%clk
0:00:06.6]} 45. Qd2 {[%clk 0:01:06]} 45... Qd4 {[%clk 0:00:05.9]} 46. Ra2 {[%clk
0:01:00.7]} 46... Qxd2 {[%clk 0:00:06.4]} 47. Rxd2 {[%clk 0:01:02.1]} 47... Ne4
{[%clk 0:00:08]} 48. Rdc2 {[%clk 0:01:02.4]} 48... Nxc3 {[%clk 0:00:09.2]} 49.
Rxc3 {[%clk 0:01:03.9]} 49... Ba4 {[%clk 0:00:09.7]} 50. Nd3 {[%clk 0:01:00.4]}
50... Rb3 {[%clk 0:00:10.4]} 51. Rxb3 {[%clk 0:00:59.5]} 51... Bxb3 {[%clk
0:00:12.3]} 52. Nb4 {[%clk 0:01:00.9]} 52... Ra8 {[%clk 0:00:13.6]} 53. g3
{[%clk 0:01:00.2]} 53... f5 {[%clk 0:00:14.6]} 54. f4 {[%clk 0:01:01.7]} 54...
Kf6 {[%clk 0:00:13.1]} 55. h4 {[%clk 0:01:01.6]} 55... Ba4 {[%clk 0:00:13.6]}
56. Kf2 {[%clk 0:01:01.9]} 56... Bb5 {[%clk 0:00:14.8]} 57. Ke1 {[%clk
0:01:02.8]} 57... exf4 {[%clk 0:00:16.2]} 58. gxf4 {[%clk 0:01:03.8]} 58... Re8
{[%clk 0:00:17.9]} 59. Kd2 {[%clk 0:01:05.3]} 59... Re4 {[%clk 0:00:19.6]} 60.
Nbc2 {[%clk 0:01:05.6]} 60... Rxf4 {[%clk 0:00:20.4]} 61. Kc3 {[%clk 0:01:07]}
61... Rxh4 {[%clk 0:00:21.2]} 62. Nd4 {[%clk 0:01:07.9]} 62... Re4 {[%clk
0:00:20.6]} 63. Nxb5 {[%clk 0:01:07.2]} 63... axb5 {[%clk 0:00:20.5]} 64. Nc2
{[%clk 0:01:07.6]} 64... Ra4 {[%clk 0:00:19.6]} 65. Nd4 {[%clk 0:01:07]} 65...
Rxa5 {[%clk 0:00:20.8]} 66. Ne6 {[%clk 0:01:08.3]} 66... Ra7 {[%clk 0:00:20]}
67. Kb4 {[%clk 0:01:09.8]} 67... h4 {[%clk 0:00:20.9]} 68. Kxb5 {[%clk
0:01:10.9]} 68... h3 {[%clk 0:00:22.5]} 69. Nxc7 {[%clk 0:01:12.2]} 69... Rxc7
{[%clk 0:00:23.2]} 70. Kb6 {[%clk 0:01:13.7]} 70... Rf7 {[%clk 0:00:24.7]} 71.
c7 {[%clk 0:01:14.8]} 71... Rxc7 {[%clk 0:00:26.1]} 72. Kxc7 {[%clk 0:01:16.3]}
72... Ke5 {[%clk 0:00:27.8]} 73. Kc6 {[%clk 0:01:17.5]} 73... h2 {[%clk
0:00:29.7]} 0-1